bitfinex/quotes_BTCUSD_20210101
["timestamp","ask_amount","ask_price","bid_price","bid_amount"]
[1609494148100,0.3640893,29226.0,29217.0,0.51706812]
[1609494148403,2.8269,29227.0,29217.0,0.6836]
[1609494148601,1.0,29226.0,29218.0,1.33346812]
[1609494148827,2.8269,29227.0,29219.0,0.27]
[1609494149027,2.8269,29227.0,29219.0,0.46]
[1609494149028,0.90392398,29226.0,29219.0,0.46]
[1609494149230,2.8269,29227.0,29218.0,1.2]
[1609494149231,3.73082398,29227.0,29218.0,1.2]
[1609494149426,0.90392398,29226.0,29218.0,1.21]
[1609494149723,1.0,29225.0,29218.0,1.21]
[1609494149926,0.90392398,29224.0,29218.0,1.21]
[1609494150721,1.0,29225.0,29218.0,1.21]
[1609494150722,1.90392398,29225.0,29218.0,1.21]
[1609494150922,1.0,29225.0,29218.0,1.21]
[1609494151125,2.40392398,29224.0,29218.0,1.21]
[1609494151322,2.40392398,29224.0,29218.0,1.01]
[1609494151523,2.40392398,29223.0,29218.0,1.01]
[1609494152122,1.5,29223.0,29218.0,1.01]
[1609494152523,1.0,29222.0,29218.0,1.205]
[1609494153122,1.0,29222.0,29218.0,1.005]
[1609494153323,1.5,29221.0,29218.0,1.005]
[1609494153524,1.6963,29221.0,29218.0,1.005]
[1609494154446,0.1963,29221.0,29218.0,1.005]
[1609494154849,1.0,29222.0,29218.0,1.005]
[1609494155152,1.90392398,29222.0,29218.0,1.005]
[1609494155347,1.0,29222.0,29218.0,1.005]
[1609494155848,2.5,29222.0,29218.0,1.005]
[1609494156048,3.40392398,29222.0,29218.0,1.005]
[1609494156247,2.5,29222.0,29218.0,1.005]
[1609494156446,3.40392398,29222.0,29218.0,1.005]
[1609494156647,2.5,29222.0,29218.0,1.005]
[1609494156849,1.0,29222.0,29218.0,1.005]
[1609494157248,1.5,29221.0,29218.0,1.005]
[1609494157452,1.0,29220.0,29218.0,1.005]
[1609494158195,2.5,29220.0,29218.0,1.005]
[1609494158394,2.70893,29220.0,29218.0,1.005]
[1609494158795,1.20893,29220.0,29218.0,1.005]
[1609494159400,2.70893,29220.0,29218.0,1.005]
[1609494159598,1.20893,29220.0,29218.0,1.005]
[1609494159900,1.0,29220.0,29218.0,1.005]
[1609494161830,1.0,29220.0,29219.0,0.3]
[1609494162129,1.0,29220.0,29219.0,0.565]
[1609494162327,0.9779,29220.0,29219.0,0.565]
[1609494162526,2.5284,29227.0,29219.0,0.565]
[1609494162728,1.0,29225.0,29220.0,0.505]
[1609494162932,1.0,29225.0,29222.0,1.2]
[1609494163130,1.0,29225.0,29223.0,0.3]
[1609494163328,1.0,29225.0,29222.0,1.2]
[1609494163626,1.0,29225.0,29223.0,0.1]
[1609494163861,1.0,29225.0,29223.0,0.39607602]
[1609494164057,1.0,29225.0,29224.0,0.2]
[1609494164363,2.5284,29227.0,29224.0,1.405]
[1609494164566,1.7844,29227.0,29224.0,1.405]
[1609494164761,0.6927,29227.0,29225.0,0.3]
[1609494165058,0.6715,29240.0,29226.0,0.39]
[1609494165262,0.6715,29240.0,29228.0,0.8]
[1609494165263,1.5,29237.0,29228.0,0.8]
[1609494165460,0.90392398,29236.0,29228.0,0.8]
[1609494166263,1.0,29234.0,29228.0,0.8]
[1609494166454,1.90392398,29234.0,29228.0,0.8]
[1609494167058,1.0,29234.0,29228.0,0.8]
[1609494167257,1.90392398,29234.0,29228.0,0.8]
[1609494167554,1.0,29234.0,29228.0,0.8]
[1609494167754,1.90392398,29234.0,29228.0,0.8]
[1609494168258,1.0,29234.0,29228.0,0.8]
[1609494168456,2.40392398,29233.0,29228.0,0.8]
[1609494168758,0.462,29239.0,29228.0,0.8]
[1609494168759,1.0,29231.0,29228.0,0.8]
[1609494168958,1.90392398,29231.0,29228.0,0.8]
[1609494170180,1.0,29231.0,29228.0,0.8]
[1609494171293,1.90392398,29231.0,29228.0,0.8]
[1609494172082,1.0,29231.0,29228.0,0.8]
[1609494178173,1.10266189,29231.0,29228.0,0.8]
[1609494178473,1.0,29231.0,29228.0,0.47750486]
[1609494178889,0.74911044,29230.0,29228.0,0.47750486]
[1609494179092,1.0,29229.0,29228.0,0.47750486]
[1609494179590,1.10344898,29229.0,29228.0,0.47750486]
[1609494179792,1.0,29229.0,29228.0,0.47750486]
[1609494190194,1.0,29229.0,29228.0,0.47727586]
[1609494190998,1.0,29229.0,29228.0,0.47527586]
[1609494196342,0.9796,29229.0,29228.0,0.47527586]
[1609494196539,0.9755,29229.0,29228.0,0.47527586]
[1609494196842,0.9747,29229.0,29228.0,0.57135188]
[1609494197243,0.74911044,29230.0,29228.0,0.47527586]
[1609494197742,0.74411044,29230.0,29228.0,0.47527586]
[1609494198743,0.74411044,29230.0,29228.0,0.57135188]
[1609494198947,0.74411044,29230.0,29228.0,0.67527586]
[1609494199148,0.74411044,29230.0,29223.0,0.10528]
[1609494199149,1.0,29229.0,29223.0,0.57028]
[1609494199346,1.0,29229.0,29224.0,0.53607602]
[1609494199551,1.0,29229.0,29225.0,0.29607602]
[1609494199750,1.0,29229.0,29226.0,0.29607602]
[1609494200254,1.0,29229.0,29221.0,0.69183273]
[1609494200452,0.9929,29229.0,29222.0,0.29607602]
[1609494200655,0.9929,29229.0,29223.0,0.29607602]
[1609494200852,0.9915,29229.0,29224.0,0.29607602]
[1609494201054,0.9915,29229.0,29225.0,0.09607602]
[1609494201351,0.9912,29229.0,29225.0,0.09607602]
[1609494201856,0.9912,29229.0,29224.0,0.29607602]
[1609494202053,0.9912,29229.0,29221.0,0.69183273]
[1609494202253,0.9912,29229.0,29222.0,0.29607602]
[1609494202456,0.9912,29229.0,29223.0,0.29607602]
[1609494202658,0.9912,29229.0,29225.0,0.3]
[1609494202958,0.9912,29229.0,29226.0,0.29607602]
[1609494203258,0.9912,29229.0,29227.0,0.29607602]
[1609494203391,0.9912,29229.0,29228.0,0.09607602]
[1609494203591,0.9912,29229.0,29227.0,0.29607602]
[1609494203791,0.9912,29229.0,29228.0,0.2]
[1609494203996,0.9912,29229.0,29227.0,0.29607602]
[1609494204790,0.9912,29229.0,29228.0,0.29607602]
[1609494205431,0.9912,29229.0,29228.0,0.2]
[1609494205633,0.9912,29229.0,29222.0,0.753556]
[1609494205834,0.9912,29229.0,29223.0,0.51454414]
[1609494206034,0.9912,29229.0,29224.0,0.29607602]
[1609494206231,0.9912,29229.0,29225.0,0.29607602]
[1609494206433,0.9912,29229.0,29226.0,0.29607602]
[1609494206729,0.9912,29229.0,29227.0,0.29607602]
[1609494207936,0.9912,29229.0,29224.0,0.38]
[1609494208143,0.9912,29229.0,29225.0,0.29607602]
[1609494208339,0.9912,29229.0,29226.0,0.29607602]
[1609494208537,0.9912,29229.0,29227.0,0.29607602]
[1609494208740,0.9912,29229.0,29226.0,0.5064]
[1609494208955,0.9912,29229.0,29226.0,0.60247602]
[1609494208956,0.9095,29229.0,29226.0,0.60247602]
[1609494209251,0.8932,29229.0,29226.0,0.60247602]
[1609494209452,0.8932,29229.0,29226.0,0.50247602]
[1609494209654,0.8899,29229.0,29227.0,0.435]
[1609494210052,0.8893,29229.0,29227.0,0.435]
[1609494210256,0.8893,29229.0,29228.0,0.43]
[1609494210457,0.8893,29229.0,29226.0,0.2]
[1609494210663,1.0893,29229.0,29225.0,0.84120263]
[1609494212558,0.8893,29229.0,29225.0,0.84120263]
[1609494218855,1.0893,29229.0,29225.0,0.84120263]
[1609494219158,0.8893,29229.0,29225.0,0.84120263]
[1609494219757,0.2,29228.0,29225.0,0.84120263]
[1609494219959,1.2,29228.0,29225.0,0.84120263]
[1609494220195,1.0,29228.0,29225.0,0.84120263]
[1609494221499,1.2,29228.0,29225.0,0.84120263]
[1609494222103,1.0,29228.0,29225.0,0.84120263]
[1609494222504,1.19,29228.0,29225.0,0.84120263]
[1609494222701,0.99,29228.0,29225.0,0.84120263]
[1609494222900,1.19,29228.0,29225.0,0.84120263]
[1609494223205,0.99,29228.0,29225.0,0.84120263]
[1609494224224,7.3,29226.0,29225.0,0.84120263]
[1609494224423,8.20392398,29226.0,29225.0,0.84120263]
[1609494224621,9.20392398,29226.0,29225.0,0.84120263]
[1609494225018,3.60392398,29226.0,29225.0,0.84120263]
[1609494225225,5.30392398,29226.0,29225.0,0.84120263]
[1609494225622,6.00879737,29225.0,29224.0,0.32827268]
[1609494225821,8.41272135,29225.0,29224.0,2.68e-06]
[1609494226027,8.53524135,29225.0,29217.0,0.4836]
[1609494226224,1.5,29223.0,29217.0,0.4836]
[1609494226427,1.5,29221.0,29217.0,0.4836]
[1609494226623,2.5,29219.0,29217.0,0.4836]
[1609494226824,1.0,29218.0,29217.0,0.4836]
[1609494227521,0.2,29218.0,29217.0,0.4836]
[1609494227723,1.2,29218.0,29217.0,0.4836]
[1609494227924,1.0,29218.0,29217.0,0.4836]
[1609494228225,1.2,29218.0,29217.0,0.4836]
[1609494228924,1.0,29218.0,29217.0,0.4836]
[1609494233465,1.0,29218.0,29217.0,0.4436]
[1609494234261,1.2,29218.0,29217.0,0.4436]
[1609494235505,1.0,29218.0,29217.0,0.4436]
[1609494237402,1.2,29218.0,29217.0,0.4436]
[1609494238307,1.0,29218.0,29217.0,0.4436]
[1609494239135,1.0,29218.0,29217.0,0.6436]
[1609494239333,1.0,29218.0,29217.0,0.4436]
[1609494241837,6.45679,29218.0,29217.0,0.4436]
[1609494242433,1.40679,29218.0,29217.0,0.4436]
[1609494243038,2.20679,29218.0,29217.0,0.4436]
[1609494243237,1.20679,29218.0,29217.0,0.4436]
[1609494243841,1.40679,29218.0,29217.0,0.4436]
[1609494244039,3.10679,29218.0,29217.0,0.4436]
[1609494244244,1.20679,29218.0,29217.0,0.4436]
[1609494244442,1.40679,29218.0,29217.0,0.4436]
[1609494244671,1.20679,29218.0,29217.0,0.4436]
[1609494245071,2.70679,29218.0,29217.0,0.4436]
[1609494245275,1.20679,29218.0,29217.0,0.4436]
[1609494245469,1.40679,29218.0,29217.0,0.4436]
[1609494245970,2.60679,29218.0,29217.0,0.4436]
[1609494246470,1.40679,29218.0,29217.0,0.4436]
[1609494248075,2.80679,29218.0,29217.0,0.4436]
[1609494250637,1.2,29218.0,29217.0,0.4436]
[1609494250938,1.0,29218.0,29217.0,0.4436]
[1609494251845,8.4,29218.0,29217.0,0.4436]
[1609494252146,5.85,29215.0,29214.0,0.0006]
[1609494252344,5.85,29215.0,29214.0,0.0004]
[1609494252345,10.66803398,29215.0,29214.0,0.0004]
[1609494252540,11.03212328,29215.0,29214.0,0.0004]
[1609494252739,10.66803398,29215.0,29214.0,0.0004]
[1609494252944,9.91803398,29215.0,29214.0,0.0004]
[1609494253240,8.08303398,29215.0,29214.0,0.0004]
[1609494253441,9.94712328,29215.0,29214.0,0.0004]
[1609494253838,9.58303398,29215.0,29214.0,0.0004]
[1609494256657,9.94712328,29215.0,29214.0,0.0004]
[1609494256859,9.58303398,29215.0,29214.0,0.0004]
[1609494260284,6.8494,29214.0,29213.0,0.0004]
[1609494260483,7.75332398,29214.0,29213.0,0.0004]
[1609494260885,6.8494,29214.0,29213.0,0.0004]
[1609494262390,5.6174,29213.0,29212.0,0.0002]
[1609494262697,6.6946,29213.0,29212.0,0.0002]
[1609494263090,1.59452334,29213.0,29212.0,0.0002]
[1609494263430,1.564506,29213.0,29212.0,0.0002]
[1609494263580,1.564506,29213.0,29212.0,0.2002]
[1609494263888,1.55850254,29213.0,29212.0,0.2002]
[1609494264085,1.55730148,29213.0,29212.0,0.2002]
[1609494264277,1.55730148,29213.0,29212.0,0.29627602]
[1609494264485,1.55706118,29213.0,29212.0,0.2002]
[1609494264883,1.55706118,29213.0,29212.0,0.29627602]
[1609494265079,1.55706118,29213.0,29212.0,0.2002]
[1609494265719,1.47518427,29213.0,29212.0,0.2002]
[1609494266117,1.45879154,29213.0,29211.0,0.19944034]
[1609494266317,1.45551031,29213.0,29211.0,0.29551636]
[1609494266717,1.4548533,29213.0,29211.0,0.69551636]
[1609494267116,1.4548533,29213.0,29211.0,0.19944034]
[1609494267617,1.4548533,29213.0,29211.0,0.29551636]
[1609494268318,1.45200557,29213.0,29211.0,0.59551636]
[1609494268518,1.45200557,29213.0,29211.0,0.49944034]
[1609494268719,1.45143536,29213.0,29211.0,0.59551636]
[1609494269150,1.45143536,29213.0,29211.0,0.19944034]
[1609494269549,1.45143536,29213.0,29211.0,0.00064034]
[1609494269759,1.45163536,29213.0,29211.0,0.00064034]
[1609494269956,1.05163536,29213.0,29211.0,0.35064034]
[1609494270254,1.05163536,29213.0,29211.0,0.00064034]
[1609494270453,1.25163536,29213.0,29211.0,0.00064034]
[1609494270653,1.05163536,29213.0,29211.0,0.00064034]
[1609494271155,0.8772,29213.0,29211.0,0.00064034]
[1609494272153,1.8772,29213.0,29211.0,0.00064034]
[1609494273156,0.1,29212.0,29211.0,0.00064034]
[1609494274157,1.8772,29213.0,29211.0,0.00064034]
[1609494274467,1.0,29209.0,29208.0,0.0006]
[1609494274693,1.0,29209.0,29208.0,0.09667602]
[1609494274884,1.0,29209.0,29208.0,0.0006]
[1609494275083,1.0,29209.0,29208.0,0.09667602]
[1609494276387,1.2,29209.0,29208.0,0.0006]
[1609494276683,1.2,29209.0,29206.0,0.0006]
[1609494276889,1.2,29207.0,29205.0,0.03388073]
[1609494277291,1.2,29207.0,29204.0,0.2201]
[1609494277490,1.0,29207.0,29205.0,0.23607602]
[1609494277689,1.0,29207.0,29206.0,0.09607602]
[1609494278368,1.0,29207.0,29205.0,0.09607602]
[1609494279569,1.0,29207.0,29206.0,0.364749]
[1609494279771,1.0,29207.0,29206.0,0.46082502]
[1609494280672,1.0,29207.0,29206.0,0.364749]
[1609494280871,1.0,29207.0,29204.0,0.2201]
[1609494281072,1.0,29207.0,29205.0,0.17]
[1609494281367,0.97264773,29207.0,29205.0,0.46082502]
[1609494281872,0.96716937,29207.0,29204.0,0.2201]
[1609494282076,0.96716937,29207.0,29205.0,0.16]
[1609494282077,0.96694992,29207.0,29205.0,0.16]
[1609494282277,0.96694992,29207.0,29204.0,0.2201]
[1609494283876,0.91238116,29207.0,29204.0,0.2201]
[1609494284080,0.1,29206.0,29204.0,0.2201]
[1609494284576,0.09781335,29206.0,29204.0,0.2201]
[1609494284978,0.09737572,29206.0,29204.0,0.2201]
[1609494285181,0.09737572,29206.0,29205.0,0.14]
[1609494285379,0.09737572,29206.0,29204.0,0.2201]
[1609494285982,0.91238116,29207.0,29204.0,0.2201]
[1609494286184,0.1,29206.0,29204.0,0.2201]
[1609494286581,1.3,29206.0,29204.0,0.2201]
[1609494286887,1.3,29206.0,29205.0,0.14]
[1609494286888,1.1,29206.0,29205.0,0.14]
[1609494287082,1.1,29206.0,29204.0,0.2201]
[1609494287483,1.1,29206.0,29205.0,0.26718263]
[1609494288534,2.75,29206.0,29205.0,0.26718263]
[1609494288737,2.75,29206.0,29204.0,0.2201]
[1609494288738,1.3,29206.0,29204.0,0.2201]
[1609494288933,1.27538332,29206.0,29204.0,0.2201]
[1609494289341,1.07538332,29206.0,29204.0,0.2201]
[1609494289536,1.07538332,29206.0,29205.0,0.14]
[1609494289836,1.07538332,29206.0,29204.0,0.48730194]
[1609494290333,1.07538332,29206.0,29204.0,0.2201]
[1609494291339,0.97538332,29206.0,29205.0,0.14]
[1609494291556,0.97538332,29206.0,29204.0,0.2201]
[1609494291956,0.97538332,29206.0,29204.0,0.2151]
[1609494292858,0.97538332,29206.0,29203.0,0.0006]
[1609494293499,0.97538332,29206.0,29203.0,0.01432619]
[1609494294596,0.97538332,29206.0,29203.0,0.0006]
[1609494294797,0.97538332,29206.0,29203.0,0.09667602]
[1609494295103,0.97538332,29206.0,29204.0,0.01372619]
[1609494295329,0.97538332,29206.0,29204.0,0.10980221]
[1609494295525,0.92538332,29206.0,29204.0,0.10980221]
[1609494295728,0.92538332,29206.0,29204.0,0.01372619]
[1609494296927,0.92538332,29206.0,29203.0,0.0006]
[1609494297126,0.92429503,29206.0,29203.0,0.0006]
[1609494297527,0.9240772,29206.0,29203.0,0.0006]
[1609494298629,0.9240772,29206.0,29203.0,0.09667602]
[1609494299256,0.9240772,29206.0,29203.0,0.0006]
[1609494301863,0.82878756,29206.0,29203.0,0.0006]
[1609494302361,0.8097172,29206.0,29203.0,0.0006]
[1609494302567,0.80590077,29206.0,29203.0,0.09667602]
[1609494302762,0.80590077,29206.0,29203.0,0.0006]
[1609494303062,0.8051369,29206.0,29204.0,0.135]
[1609494303263,0.8051369,29206.0,29205.0,0.01372619]
[1609494304785,0.78044601,29206.0,29205.0,0.01372619]
[1609494305180,0.77550123,29206.0,29205.0,0.01372619]
[1609494305479,0.77451095,29206.0,29205.0,0.01372619]
[1609494307285,0.692594,29206.0,29205.0,0.01372619]
[1609494307588,0.67619207,29206.0,29205.0,0.01372619]
[1609494308086,0.67290674,29206.0,29205.0,0.01372619]
[1609494308479,0.6722488,29206.0,29205.0,0.01372619]
[1609494308638,0.288,29210.0,29205.0,0.01372619]
[1609494308839,1.0,29209.0,29205.0,0.01372619]
[1609494309741,0.99715483,29209.0,29205.0,0.01372619]
[1609494310141,0.99658532,29209.0,29205.0,0.01372619]
[1609494311383,0.99658532,29209.0,29206.0,0.364749]
[1609494311593,0.99658532,29209.0,29208.0,0.364749]
[1609494311787,0.85889665,29209.0,29208.0,0.63455121]
[1609494311980,0.85889665,29209.0,29208.0,0.66801933]
[1609494312185,0.8772,29210.0,29208.0,0.66801933]
[1609494312384,0.8772,29210.0,29209.0,0.8293852]
[1609494312787,0.8772,29210.0,29209.0,1.43281701]
[1609494313185,0.8498,29210.0,29209.0,1.43281701]
[1609494313586,0.8443,29210.0,29209.0,2.50281701]
[1609494313982,0.8432,29210.0,29209.0,2.64424888]
[1609494314207,0.843,29210.0,29209.0,2.64424888]
[1609494314403,0.843,29210.0,29209.0,2.15428519]
[1609494315605,0.843,29210.0,29209.0,3.15428519]
[1609494315904,0.74005212,29210.0,29209.0,3.15428519]
[1609494316110,0.644789,29210.0,29209.0,3.15428519]
[1609494316314,0.6951,29227.0,29209.0,3.15428519]
[1609494316520,0.6951,29227.0,29217.0,0.53]
[1609494316826,1.74411044,29230.0,29224.0,0.364749]
[1609494317011,0.74411044,29230.0,29224.0,0.46082502]
[1609494317212,0.74411044,29230.0,29225.0,0.175]
[1609494317508,0.74411044,29230.0,29226.0,0.364749]
[1609494317715,0.72371044,29230.0,29226.0,0.364749]
[1609494318107,0.71961044,29230.0,29226.0,0.364749]
[1609494318311,0.71881044,29230.0,29226.0,0.364749]
[1609494318509,0.71881044,29230.0,29225.0,0.175]
[1609494318710,0.71881044,29230.0,29226.0,0.364749]
[1609494318711,0.71861044,29230.0,29226.0,0.364749]
[1609494318910,0.71861044,29230.0,29227.0,0.364749]
[1609494319728,0.71861044,29230.0,29228.0,0.364749]
[1609494320127,0.58181044,29230.0,29228.0,0.364749]
[1609494321226,0.55441044,29230.0,29228.0,0.364749]
[1609494321631,0.54901044,29230.0,29228.0,0.364749]
[1609494322031,0.54791044,29230.0,29228.0,0.364749]
[1609494322230,0.54791044,29230.0,29224.0,0.364749]
[1609494322432,0.54771044,29230.0,29224.0,0.364749]
[1609494323232,0.54771044,29230.0,29224.0,0.46082502]
[1609494323547,0.54771044,29230.0,29224.0,0.364749]
[1609494324287,0.54771044,29230.0,29223.0,0.39149187]
[1609494324488,0.54771044,29230.0,29223.0,0.34062187]
[1609494324787,0.54771044,29230.0,29224.0,0.364749]
[1609494325185,0.54271044,29230.0,29224.0,0.364749]
[1609494325420,0.54271044,29230.0,29224.0,0.50618087]
[1609494325619,0.54171044,29230.0,29224.0,0.50618087]
[1609494325821,0.54151044,29230.0,29224.0,0.50618087]
[1609494327024,0.08627381,29229.0,29224.0,0.14143187]
[1609494327523,0.08627381,29229.0,29224.0,0.00136071]
[1609494327826,0.09863929,29224.0,29223.0,0.50618087]
[1609494331247,0.08233929,29224.0,29223.0,1.80618087]
[1609494331449,0.08233929,29224.0,29223.0,0.79118087]
[1609494331650,0.07913929,29224.0,29223.0,1.95618087]
[1609494331849,0.07913929,29224.0,29223.0,0.50618087]
[1609494332048,0.07843929,29224.0,29223.0,2.15618087]
[1609494332253,0.07802867,29224.0,29223.0,1.64118087]
[1609494332450,0.07802867,29224.0,29223.0,0.84118087]
[1609494332650,0.07802867,29224.0,29223.0,0.50618087]
[1609494333050,0.06022867,29224.0,29223.0,0.50618087]
[1609494333250,0.05662867,29224.0,29223.0,2.50618087]
[1609494333452,0.05662867,29224.0,29223.0,0.89618087]
[1609494333656,0.05592867,29224.0,29223.0,0.14143187]
[1609494333860,0.05592867,29224.0,29222.0,0.14143187]
[1609494334159,0.08627381,29223.0,29222.0,0.14143187]
[1609494334785,0.08627381,29223.0,29219.0,0.25491976]
[1609494335574,0.04537381,29223.0,29219.0,0.25491976]
[1609494335774,0.03717381,29223.0,29219.0,0.25491976]
[1609494336277,0.03557381,29223.0,29219.0,0.25491976]
[1609494336479,0.03517381,29223.0,29219.0,0.25491976]
[1609494339131,0.05572867,29224.0,29219.0,0.25491976]
[1609494339329,0.09090248,29224.0,29219.0,0.25491976]
[1609494340975,0.09090248,29224.0,29223.0,0.32648351]
[1609494341577,0.09090248,29224.0,29219.0,0.25491976]
[1609494341875,0.09090248,29224.0,29223.0,0.32643893]
[1609494343474,0.06360248,29224.0,29223.0,0.32643893]
[1609494343676,0.05820248,29224.0,29223.0,0.32643893]
[1609494343875,0.05820248,29224.0,29219.0,0.39636947]
[1609494344077,0.25710248,29224.0,29219.0,0.39636947]
[1609494344289,0.05710248,29224.0,29219.0,0.39636947]
[1609494344491,0.05690248,29224.0,29219.0,0.39636947]
[1609494344896,0.02172867,29224.0,29219.0,0.39636947]
[1609494345400,0.02172867,29224.0,29220.0,0.60227473]
[1609494345597,0.02172867,29224.0,29221.0,0.14]
[1609494345795,0.87162867,29226.0,29222.0,0.364749]
[1609494346297,0.86622867,29226.0,29221.0,0.14]
[1609494346495,0.86512867,29226.0,29221.0,0.28144971]
[1609494346892,0.86492867,29226.0,29221.0,0.28144971]
[1609494348295,0.86492867,29226.0,29221.0,0.37752573]
[1609494348497,0.86492867,29226.0,29221.0,0.28144971]
[1609494348697,0.03517381,29225.0,29221.0,0.28144971]
[1609494349299,0.03517381,29225.0,29221.0,0.14]
[1609494349916,1.86492867,29226.0,29221.0,0.14]
[1609494350223,1.86492867,29226.0,29222.0,0.09607602]
[1609494350421,1.86492867,29226.0,29221.0,0.23281602]
[1609494350620,1.86492867,29226.0,29225.0,0.32667743]
[1609494351421,1.86492867,29226.0,29221.0,0.27818971]
[1609494351722,1.86492867,29226.0,29221.0,0.14144971]
[1609494352019,1.86492867,29226.0,29221.0,0.17707226]
[1609494352222,1.86492867,29226.0,29225.0,0.32672613]
[1609494353769,1.81042867,29226.0,29225.0,0.32672613]
[1609494353977,1.81042867,29226.0,29225.0,0.31590565]
[1609494354172,1.79952867,29226.0,29225.0,0.31590565]
[1609494354371,1.66072867,29226.0,29225.0,0.31590565]
[1609494354773,1.66072867,29226.0,29221.0,0.03562255]
[1609494354973,1.0,29226.0,29221.0,0.03562255]
[1609494355508,0.9722,29226.0,29221.0,0.03562255]
[1609494355804,0.9667,29226.0,29221.0,0.03562255]
[1609494356007,0.9656,29226.0,29221.0,0.03562255]
[1609494356506,0.6777,29227.0,29221.0,0.03562255]
[1609494357111,0.6777,29227.0,29221.0,0.27314828]
[1609494357408,0.6777,29227.0,29221.0,0.17707226]
[1609494358210,0.6449,29227.0,29221.0,0.03562255]
[1609494358411,0.6399,29227.0,29222.0,0.09607602]
[1609494358614,0.6399,29227.0,29223.0,0.364749]
[1609494358810,0.6399,29227.0,29223.0,0.547909]
[1609494359116,0.6399,29227.0,29224.0,0.09607602]
[1609494359333,0.6399,29227.0,29225.0,0.364749]
[1609494359536,1.2773,29229.0,29227.0,0.33180302]
[1609494359737,1.53731044,29230.0,29228.0,0.364749]
[1609494359935,1.53731044,29230.0,29227.0,0.41021302]
[1609494360143,1.53651044,29230.0,29229.0,0.33180302]
[1609494360641,1.53631044,29230.0,29229.0,0.18]
[1609494360845,0.54151044,29230.0,29228.0,0.10666]
[1609494361635,0.51421044,29230.0,29228.0,0.10666]
[1609494361837,0.50871044,29230.0,29228.0,0.10666]
[1609494362236,0.50761044,29230.0,29228.0,0.10666]
[1609494362439,0.50761044,29230.0,29228.0,0.24810971]
[1609494362639,0.50741044,29230.0,29228.0,0.24810971]
[1609494364860,0.50741044,29230.0,29228.0,0.10666]
[1609494366362,0.50741044,29230.0,29227.0,0.07841]
[1609494366564,0.50061044,29230.0,29226.0,0.14144971]
[1609494366764,0.49931044,29230.0,29226.0,0.14144971]
[1609494367167,0.49901044,29230.0,29227.0,0.09607602]
[1609494367470,0.49901044,29230.0,29227.0,0.50619871]
[1609494367866,0.49901044,29230.0,29227.0,0.60227473]
[1609494369622,0.49901044,29230.0,29227.0,0.46082502]
[1609494370667,0.49901044,29230.0,29227.0,0.364749]
[1609494370867,0.49901044,29230.0,29225.0,0.13561423]
[1609494372266,0.74158577,29225.0,29224.0,0.07123084]
[1609494372474,0.74158577,29225.0,29222.0,0.14144971]
[1609494372770,0.03517381,29224.0,29217.0,0.10228905]
[1609494373169,0.03517381,29224.0,29220.0,0.09607602]
[1609494373370,0.74158577,29225.0,29220.0,0.09607602]
[1609494373668,0.74158577,29225.0,29221.0,0.50619871]
[1609494373865,0.74158577,29225.0,29221.0,0.60227473]
[1609494374070,0.74158577,29225.0,29222.0,0.09607602]
[1609494374284,0.69378577,29225.0,29221.0,0.23752573]
[1609494374589,0.68428577,29225.0,29223.0,0.364749]
[1609494374886,0.68428577,29225.0,29223.0,0.14144971]
[1609494375083,0.68238577,29225.0,29223.0,0.14144971]
[1609494375484,0.68198577,29225.0,29223.0,0.14144971]
[1609494375885,0.68198577,29225.0,29220.0,0.364749]
[1609494376983,0.68198577,29225.0,29220.0,0.50619871]
[1609494377183,0.68198577,29225.0,29221.0,0.14]
[1609494378188,0.03517381,29224.0,29221.0,0.14]
[1609494378389,0.03517381,29224.0,29217.0,0.10228905]
[1609494378588,0.68198577,29225.0,29219.0,0.31537602]
[1609494378987,0.68198577,29225.0,29220.0,0.09607602]
[1609494379589,0.65458577,29225.0,29221.0,0.364749]
[1609494379788,0.64918577,29225.0,29221.0,0.50619871]
[1609494380212,0.64808577,29225.0,29221.0,0.14144971]
[1609494380412,0.64788577,29225.0,29222.0,0.364749]
[1609494380813,0.64788577,29225.0,29222.0,0.14144971]
[1609494381713,0.64788577,29225.0,29220.0,0.14144971]
[1609494382213,0.64788577,29225.0,29221.0,0.364749]
[1609494382514,0.64788577,29225.0,29221.0,0.504749]
[1609494382715,0.64788577,29225.0,29221.0,0.28144971]
[1609494382716,0.03517381,29224.0,29221.0,0.28144971]
[1609494382912,0.03517381,29224.0,29221.0,0.14144971]
[1609494383768,0.03517381,29224.0,29220.0,0.14144971]
[1609494383970,0.03517381,29224.0,29221.0,0.364749]
[1609494384168,0.03517381,29224.0,29220.0,0.14144971]
[1609494384867,0.03517381,29224.0,29219.0,0.2193]
[1609494385169,0.64788577,29225.0,29220.0,0.364749]
[1609494385799,0.64788577,29225.0,29220.0,0.50619871]
[1609494389337,0.64788577,29225.0,29220.0,0.14144971]
[1609494389540,0.64788577,29225.0,29221.0,0.50619871]
[1609494389739,0.64788577,29225.0,29221.0,0.14144971]
[1609494390741,0.64788577,29225.0,29222.0,0.364749]
[1609494391940,0.64788577,29225.0,29222.0,0.50619871]
[1609494393141,0.64098577,29225.0,29222.0,0.50619871]
[1609494393541,0.63968577,29225.0,29222.0,0.50619871]
[1609494393741,0.63938577,29225.0,29222.0,0.50619871]
[1609494394541,0.63898577,29225.0,29222.0,0.50619871]
[1609494395469,0.63898577,29225.0,29222.0,0.60227473]
[1609494396061,0.63898577,29225.0,29222.0,0.50619871]
[1609494398563,0.63898577,29225.0,29222.0,0.50726553]
[1609494399216,0.63898577,29225.0,29223.0,0.145]
[1609494399418,0.63898577,29225.0,29224.0,0.364749]
[1609494399717,0.63898577,29225.0,29223.0,0.28644971]
[1609494399914,0.63898577,29225.0,29223.0,0.14144971]
[1609494400518,0.63898577,29225.0,29222.0,0.00106682]
[1609494401160,0.63898577,29225.0,29223.0,0.364749]
[1609494401557,0.63898577,29225.0,29223.0,0.50619871]
[1609494401956,0.63898577,29225.0,29223.0,0.14144971]
[1609494402658,0.63898577,29225.0,29222.0,0.00106682]
[1609494403860,0.63898577,29225.0,29223.0,0.364749]
[1609494404064,0.63898577,29225.0,29224.0,0.145]